[Event "34rd NATO Championship 2024"]
[Site "Rhodes"]
[Date "2024.10.21"]
[Round "1.46"]
[White "Cavinato, Ermes"]
[Black "Lebrun, Roger"]
[Result "0-1"]
[ECO "C00"]
[WhiteElo "1630"]
[BlackElo "1984"]
[Annotator "RC"]
[PlyCount "92"]
[EventDate "2024.09.18"]
[EventType "swiss"]
[EventCountry "GRE"]
[SourceTitle "playchess.com"]
[Source "ChessBase"]
[SourceQuality "1"]
[TimeControl "5400+30"]

1. e4 {[%emt 0:00:06]} e6 {[%emt 0:00:38]} 2. Nf3 {[%emt 0:03:09]} d5 {[%emt 0:01:23]} 3. exd5 {[%emt 0:03:46]} exd5 {[%emt 0:00:20]} 4. h3 {[%emt 0:02:37]} Bd6 {[%emt 0:02:25]} 5. Bb5+ {[%emt 0:04:55]} c6 {[%emt 0:01:57]} 6. Ba4 {[%emt 0:02:28]} Ne7 {[%emt 0:00:56]} 7. O-O {[%emt 0:04:40]} O-O {[%emt 0:00:22]} 8. c3 {[%emt 0:02:13]} h6 {[%emt 0:05:10]} 9. d4 {[%emt 0:04:16]} Bf5 {[%emt 0:00:29]} 10. Bc2 {[%emt 0:04:56]} Nd7 {[%emt 0:00:42]} 11. Nh4 {[%emt 0:04:48]} Bxc2 {[%emt 0:06:22]} 12. Qxc2 {[%emt 0:00:30]} Nf6 {[%emt 0:03:38]} 13. Nf5 {[%emt 0:05:36]} Nxf5 {[%emt 0:00:58]} 14. Qxf5 {[%emt 0:00:27]} Qd7 {[%emt 0:00:30]} 15. Qf3 {[%emt 0:03:26]} Ne4 {[%emt 0:00:58]} 16. Nd2 {[%emt 0:06:35]} Rae8 {[%emt 0:00:30]} 17. Nxe4 {[%emt 0:00:30]} Rxe4 {[%emt 0:03:54]} 18. Bd2 {[%emt 0:08:53]} Rfe8 {[%emt 0:00:43]} 19. Rfe1 {[%emt 0:02:52]} f5 {[%emt 0:00:30]} 20. Qh5 {[%emt 0:00:30]} Qf7 {[%emt 0:17:05]} 21. Qxf7+ {[%emt 0:11:56]} Kxf7 {[%emt 0:00:30]} 22. Kf1 {[%emt 0:02:34]} f4 {[%emt 0:04:42]} 23. f3 {[%emt 0:05:30]} Rxe1+ {[%emt 0:10:05]} 24. Rxe1 {[%emt 0:00:12]} Rh8 {[%emt 0:00:30]} 25. Re2 {[%emt 0:03:24]} Kf6 {[%emt 0:01:52]} 26. Be1 {[%emt 0:01:28]} Kf5 {[%emt 0:00:36]} 27. Kg1 {[%emt 0:01:34]} h5 {[%emt 0:02:53]} 28. h4 {[%emt 0:01:55]} Rh6 {[%emt 0:06:33]} 29. Kh2 {[%emt 0:03:12]} Re6 {[%emt 0:01:29]} 30. Rxe6 {[%emt 0:00:32]} Kxe6 {[%emt 0:00:13]} 31. g3 {[%emt 0:01:23]} fxg3+ {[%emt 0:00:14]} 32. Bxg3 {[%emt 0:00:05]} Bxg3+ {[%emt 0:00:23]} 33. Kxg3 {[%emt 0:00:05]} Kf5 {[%emt 0:00:09]} 34. a3 {[%emt 0:02:54]} g5 {[%emt 0:01:29]} 35. hxg5 {[%emt 0:02:12]} Kxg5 {[%emt 0:00:12]} 36. b3 {[%emt 0:02:21]} h4+ {[%emt 0:27:10]} 37. Kf2 {[%emt 0:00:00]} Kf4 {[%emt 0:00:30]} 38. c4 {[%emt 0:00:13]} h3 {[%emt 0:00:00]} 39. cxd5 {[%emt 0:01:17]} cxd5 {[%emt 0:01:00]} 40. b4 {[%emt 0:00:30]} b5 {[%emt 0:00:00]} 41. a4 {[%emt 0:00:00]} bxa4 {[%emt 0:00:00]} 42. b5 {[%emt 0:00:00]} a3 {[%emt 0:00:00]} 43. Kg1 {[%emt 0:00:25]} Kg3 {[%emt 0:00:00]} 44. f4 {[%emt 0:00:12]} h2+ {[%emt 0:00:00]} 45. Kh1 {[%emt 0:00:14]} a2 {[%emt 0:00:00]} 46. f5 {[%emt 0:00:04]} a1=Q# {[%emt 0:00:00]} 0-1

[Event "34rd NATO Championship 2024"]
[Site "Rhodes"]
[Date "2024.10.21"]
[Round "1.47"]
[White "Parker, Glen D"]
[Black "Jansen, Johan"]
[Result "1-0"]
[ECO "B00"]
[WhiteElo "1979"]
[BlackElo "1637"]
[Annotator "RC"]
[PlyCount "43"]
[EventDate "2024.09.18"]
[EventType "swiss"]
[EventCountry "GRE"]
[SourceTitle "playchess.com"]
[Source "ChessBase"]
[SourceQuality "1"]
[TimeControl "5400+30"]

1. e4 {[%emt 0:00:03]} b6 {[%emt 0:00:35]} 2. Nc3 {[%emt 0:00:46]} Bb7 {[%emt 0:00:25]} 3. Bc4 {[%emt 0:01:44]} e6 {[%emt 0:01:10]} 4. d3 {[%emt 0:04:15]} Bb4 {[%emt 0:03:47]} 5. Bd2 {[%emt 0:07:53]} Nf6 {[%emt 0:03:19]} 6. Nf3 {[%emt 0:10:49]} d5 {[%emt 0:17:16]} 7. exd5 {[%emt 0:07:28]} exd5 {[%emt 0:10:36]} 8. Qe2+ {[%emt 0:02:49]} Be7 {[%emt 0:03:42]} 9. Bb3 {[%emt 0:05:23]} Nbd7 {[%emt 0:10:42]} 10. O-O {[%emt 0:12:46]} Nc5 {[%emt 0:06:10]} 11. Rfe1 {[%emt 0:02:50]} Nxb3 {[%emt 0:05:53]} 12. axb3 {[%emt 0:00:20]} h6 {[%emt 0:07:23]} 13. Nd4 {[%emt 0:20:55]} g6 {[%emt 0:07:43]} 14. Bf4 {[%emt 0:04:40]} c6 {[%emt 0:05:30]} 15. Qf3 {[%emt 0:05:10]} Qd7 {[%emt 0:04:57]} 16. Be5 {[%emt 0:02:24]} Qg4 {[%emt 0:01:34]} 17. Bxf6 {[%emt 0:00:42]} Qxf3 {[%emt 0:00:36]} 18. Rxe7+ {[%emt 0:00:06]} Kf8 {[%emt 0:00:33]} 19. gxf3 {[%emt 0:00:07]} Rb8 {[%emt 0:01:01]} 20. Rxa7 {[%emt 0:00:19]} Rh7 {[%emt 0:01:38]} 21. Raxb7 {[%emt 0:00:10]} Rxb7 {[%emt 0:00:07]} 22. Rxb7 {[%emt 0:00:05]} 1-0

[Event "34rd NATO Championship 2024"]
[Site "Rhodes"]
[Date "2024.10.21"]
[Round "1.48"]
[White "Stikane, Evelina"]
[Black "Peraino, Andrew"]
[Result "0-1"]
[ECO "B07"]
[WhiteElo "1583"]
[BlackElo "1965"]
[Annotator "RC"]
[PlyCount "144"]
[EventDate "2024.09.18"]
[EventType "swiss"]
[EventCountry "GRE"]
[SourceTitle "playchess.com"]
[Source "ChessBase"]
[SourceQuality "1"]
[TimeControl "5400+30"]

1. d4 {[%emt 0:00:02]} g6 {[%emt 0:00:18]} 2. Nc3 {[%emt 0:00:06]} Nf6 {[%emt 0:00:26]} 3. Bf4 {[%emt 0:00:30]} d6 {[%emt 0:00:33]} 4. e4 {[%emt 0:00:28]} a6 {[%emt 0:00:52]} 5. a4 {[%emt 0:00:09]} c5 {[%emt 0:07:21]} 6. dxc5 {[%emt 0:04:22]} Qa5 {[%emt 0:00:11]} 7. Qd2 {[%emt 0:10:50]} Qxc5 {[%emt 0:00:29]} 8. Nf3 {[%emt 0:04:44]} Nc6 {[%emt 0:01:23]} 9. Rd1 {[%emt 0:04:24]} Bg7 {[%emt 0:07:07]} 10. e5 {[%emt 0:09:09]} dxe5 {[%emt 0:00:52]} 11. Nxe5 {[%emt 0:00:26]} O-O {[%emt 0:00:20]} 12. Nd3 {[%emt 0:01:34]} Qb6 {[%emt 0:01:24]} 13. Be2 {[%emt 0:03:47]} Bf5 {[%emt 0:03:17]} 14. Qc1 {[%emt 0:04:58]} e5 {[%emt 0:10:48]} 15. Be3 {[%emt 0:09:02]} Qc7 {[%emt 0:02:16]} 16. O-O {[%emt 0:01:37]} Rac8 {[%emt 0:01:19]} 17. Rfe1 {[%emt 0:05:49]} Nd4 {[%emt 0:03:19]} 18. Bf1 {[%emt 0:06:59]} Ng4 {[%emt 0:01:47]} 19. Bg5 {[%emt 0:05:30]} Nxc2 {[%emt 0:19:26]} 20. Nd5 {[%emt 0:06:01]} Qb8 {[%emt 0:00:09]} 21. Ne7+ {[%emt 0:02:09]} Kh8 {[%emt 0:00:08]} 22. Nxc8 {[%emt 0:00:11]} Rxc8 {[%emt 0:00:33]} 23. Qd2 {[%emt 0:03:06]} Nxe1 {[%emt 0:01:26]} 24. Rxe1 {[%emt 0:01:17]} e4 {[%emt 0:06:30]} 25. Bf4 {[%emt 0:01:12]} Qa7 {[%emt 0:00:16]} 26. h3 {[%emt 0:02:31]} Nf6 {[%emt 0:11:07]} 27. Ne5 {[%emt 0:05:13]} Be6 {[%emt 0:02:21]} 28. Be3 {[%emt 0:00:42]} Qa8 {[%emt 0:00:27]} 29. Rd1 {[%emt 0:03:03]} Kg8 {[%emt 0:02:02]} 30. b4 {[%emt 0:01:05]} b5 {[%emt 0:05:41]} 31. axb5 {[%emt 0:01:03]} axb5 {[%emt 0:00:11]} 32. Bxb5 {[%emt 0:00:50]} Qb8 {[%emt 0:00:08]} 33. Ba6 {[%emt 0:00:47]} Re8 {[%emt 0:01:18]} 34. Nc6 {[%emt 0:00:19]} Qc7 {[%emt 0:00:43]} 35. b5 {[%emt 0:00:12]} Nd5 {[%emt 0:00:04]} 36. Bd4 {[%emt 0:00:29]} Bf8 {[%emt 0:01:59]} 37. Rc1 {[%emt 0:00:53]} Bd6 {[%emt 0:02:31]} 38. Nb4 {[%emt 0:01:06]} Bxb4 {[%emt 0:00:26]} 39. Rxc7 {[%emt 0:00:20]} Bxd2 {[%emt 0:00:07]} 40. Rc2 {[%emt 0:00:16]} e3 {[%emt 0:00:29]} 41. fxe3 {[%emt 0:00:12]} Bxe3+ {[%emt 0:00:10]} 42. Bxe3 {[%emt 0:00:11]} Nxe3 {[%emt 0:00:07]} 43. Rb2 {[%emt 0:00:12]} Nc4 {[%emt 0:00:10]} 44. Rb4 {[%emt 0:00:23]} Rb8 {[%emt 0:00:23]} 45. Kf2 {[%emt 0:00:13]} Nb6 {[%emt 0:00:25]} 46. Rd4 {[%emt 0:00:14]} Kf8 {[%emt 0:00:19]} 47. Ke3 {[%emt 0:00:14]} Ke7 {[%emt 0:00:16]} 48. Rh4 {[%emt 0:00:38]} h5 {[%emt 0:00:18]} 49. Re4 {[%emt 0:00:10]} Kd6 {[%emt 0:00:37]} 50. Kd4 {[%emt 0:00:39]} Kc7 {[%emt 0:00:39]} 51. Kc5 {[%emt 0:00:47]} Nd7+ {[%emt 0:00:10]} 52. Kb4 {[%emt 0:00:15]} Kb6 {[%emt 0:00:16]} 53. Rd4 {[%emt 0:00:23]} Kc7 {[%emt 0:00:48]} 54. Rd2 {[%emt 0:00:47]} Nb6 {[%emt 0:02:47]} 55. Rd1 {[%emt 0:02:02]} Bd5 {[%emt 0:01:21]} 56. g4 {[%emt 0:01:17]} hxg4 {[%emt 0:00:14]} 57. hxg4 {[%emt 0:00:05]} Kd6 {[%emt 0:00:09]} 58. Re1 {[%emt 0:00:59]} f5 {[%emt 0:01:04]} 59. gxf5 {[%emt 0:00:28]} gxf5 {[%emt 0:00:01]} 60. Rf1 {[%emt 0:00:20]} Rf8 {[%emt 0:00:09]} 61. Rf4 {[%emt 0:00:55]} Be4 {[%emt 0:01:03]} 62. Rh4 {[%emt 0:00:25]} Nd5+ {[%emt 0:02:24]} 63. Kc4 {[%emt 0:00:24]} Rf6 {[%emt 0:01:55]} 64. Rh8 {[%emt 0:00:55]} Ke5 {[%emt 0:00:38]} 65. Kc5 {[%emt 0:00:30]} Kf4 {[%emt 0:01:19]} 66. Bc8 {[%emt 0:00:58]} Nb6 {[%emt 0:01:17]} 67. Ba6 {[%emt 0:00:28]} Ke3 {[%emt 0:00:38]} 68. Rh3+ {[%emt 0:00:47]} Kf2 {[%emt 0:00:11]} 69. Rh7 {[%emt 0:00:16]} f4 {[%emt 0:00:20]} 70. Rc7 {[%emt 0:00:20]} f3 {[%emt 0:00:51]} 71. Rc6 {[%emt 0:00:24]} Nd7+ {[%emt 0:00:35]} 72. Kd4 {[%emt 0:01:30]} Bxc6 {[%emt 0:00:10]} 0-1

[Event "34rd NATO Championship 2024"]
[Site "Rhodes"]
[Date "2024.10.22"]
[Round "2.1"]
[White "Wells, Daniel J"]
[Black "Alexakis, Dimitris"]
[Result "0-1"]
[ECO "B63"]
[WhiteElo "2036"]
[BlackElo "2504"]
[Annotator "TA"]
[PlyCount "52"]
[EventDate "2024.09.18"]
[EventType "swiss"]
[EventCountry "GRE"]
[SourceTitle "playchess.com"]
[Source "ChessBase"]
[SourceQuality "1"]
[TimeControl "5400+30"]

{[%evp 13,52,22,56,-22,-19,-25,-20,-21,-5,0,0,-108,-93,-117,-128,-118,-99,-138,-133,-141,-100,-81,-98,-105,-62,-127,-122,-189,-202,-189,-193,-304,-303,-603,-167,-620,-656,-762,-741,-741,-685]} 1. e4 {[%emt 0:00:03]} c5 {[%emt 0:00:13]} 2. Nf3 {[%emt 0:00:11]} d6 {[%emt 0:01:53]} 3. d4 cxd4 {[%emt 0:00:08]} 4. Nxd4 {[%emt 0:00:57]} Nf6 {[%emt 0:00:06]} 5. Nc3 {[%emt 0:00:06]} Nc6 {[%emt 0:00:05]} 6. Bg5 {[%emt 0:01:18]} e6 {[%emt 0:00:12]} 7. Qd2 {[%emt 0:03:32]} h6 {[%emt 0:01:30]} 8. Nxc6 {[%emt 0:04:56]} ({White should play} 8. Bxf6 $1 $14 gxf6 9. O-O-O) 8... bxc6 $11 {[%emt 0:00:07]} 9. Bf4 {[%emt 0:02:14]} e5 {[%emt 0:01:56]} 10. Bg3 {[%emt 0:03:22] The position is equal.} Rb8 {[%emt 0:02:44][%cal Of8e7]} 11. Be2 {[%emt 0:21:11]} Be7 {[%emt 0:12:38]} 12. O-O {[%emt 0:03:45]} (12. b3 $11) 12... Rxb2 $17 {[%emt 0:04:21]} 13. Rab1 {[%emt 0:06:05]} Rxb1 {[%emt 0:02:54]} 14. Rxb1 {[%emt 0:02:16]} O-O {[%emt 0:00:17]} 15. Qe3 {[%emt 0:06:18]} Qc7 {[%emt 0:01:05]} 16. f3 {[%emt 0:42:16]} Nd7 {[%emt 0:09:01][%cal Od6d5]} 17. Na4 {[%emt 0:00:00]} d5 {[%emt 0:01:05][%cal Od7b6]} 18. Qc3 {[%emt 0:00:00]} Bd6 {[%emt 0:03:17]} 19. Bf2 {[%emt 0:00:00]} (19. exd5 $1 $15 cxd5 20. Qxc7 Bxc7 21. Bf2) 19... d4 {[%emt 0:04:16]} 20. Qc4 {[%emt 0:00:00]} (20. Qb3 $17) 20... Nb6 $19 {[%emt 0:01:24]} 21. Nxb6 {[%emt 0:00:00]} axb6 {[%emt 0:00:07]} 22. c3 {[%emt 0:00:00]} (22. a4 $142) 22... Be6 {[%emt 0:04:51]} 23. Qa6 {[%emt 0:00:00]} (23. Qd3) 23... Bc5 $2 {[%emt 0:00:40]} (23... b5 24. Rd1 Bc8 (24... dxc3 $2 25. Kf1 $19)) 24. f4 $2 {[%emt 0:04:00]} (24. cxd4 exd4 25. a4) 24... b5 {[%emt 0:01:40] [#] Strongly threatening ...Bc8. Black is clearly winning.} 25. cxd4 {[%emt 0:00:00]} Bc8 {[%emt 0:01:42]} 26. Qa8 {[%emt 0:01:00]} Bb7 {Weighted Error Value: White=0.82/Black=0.31.  Mistake:       	White=6     	Black=1      Inaccurate:     	White=1     	Black=1      OK:         	White=4     	Black=6      Best:        	---       	Black=1} 0-1

[Event "34rd NATO Championship 2024"]
[Site "Rhodes"]
[Date "2024.10.22"]
[Round "2.2"]
[White "Stein, Robert"]
[Black "Tommasini, Enzo"]
[Result "1-0"]
[ECO "A30"]
[WhiteElo "2409"]
[BlackElo "2026"]
[Annotator "RC"]
[PlyCount "145"]
[EventDate "2024.09.18"]
[EventType "swiss"]
[EventCountry "GRE"]
[SourceTitle "playchess.com"]
[Source "ChessBase"]
[SourceQuality "1"]
[TimeControl "5400+30"]

1. Nf3 {[%emt 0:00:03]} e6 {[%emt 0:00:19]} 2. c4 {[%emt 0:01:29]} b6 {[%emt 0:03:23]} 3. g3 {[%emt 0:03:59]} Bb7 {[%emt 0:00:20]} 4. Bg2 {[%emt 0:00:19]} Nf6 {[%emt 0:03:20]} 5. O-O {[%emt 0:02:23]} c5 {[%emt 0:01:44]} 6. Nc3 {[%emt 0:05:42]} Be7 {[%emt 0:02:41]} 7. Re1 {[%emt 0:05:06]} Ne4 {[%emt 0:03:42]} 8. Qc2 {[%emt 0:09:20]} Nxc3 {[%emt 0:05:05]} 9. bxc3 {[%emt 0:02:34]} Nc6 {[%emt 0:03:14]} 10. e4 {[%emt 0:02:48]} e5 {[%emt 0:02:01]} 11. d3 {[%emt 0:00:33]} d6 {[%emt 0:00:23]} 12. Nd2 {[%emt 0:09:54]} Bg5 {[%emt 0:02:24]} 13. Rf1 {[%emt 0:05:13]} O-O {[%emt 0:11:26]} 14. f4 {[%emt 0:02:54]} Bh6 {[%emt 0:00:12]} 15. f5 {[%emt 0:05:06]} f6 {[%emt 0:03:58]} 16. h4 {[%emt 0:06:30]} Qe8 {[%emt 0:06:48]} 17. g4 {[%emt 0:11:25]} Be3+ {[%emt 0:04:09]} 18. Kh1 {[%emt 0:00:52]} g5 {[%emt 0:01:31]} 19. hxg5 {[%emt 0:05:35]} Bxg5 {[%emt 0:04:00]} 20. Nf3 {[%emt 0:00:37]} h6 {[%emt 0:00:03]} 21. Kh2 {[%emt 0:01:40]} Kf7 {[%emt 0:04:47]} 22. Kg3 {[%emt 0:02:18]} Rg8 {[%emt 0:02:15]} 23. Rh1 {[%emt 0:02:35]} Rg7 {[%emt 0:01:20]} 24. Rh5 {[%emt 0:02:50]} Ke7 {[%emt 0:04:57]} 25. Bxg5 {[%emt 0:00:29]} hxg5 {[%emt 0:00:04]} 26. Rah1 {[%emt 0:00:07]} Nd8 {[%emt 0:01:26]} 27. Nd2 {[%emt 0:01:37]} Nf7 {[%emt 0:03:09]} 28. Nf1 {[%emt 0:00:17]} Qd7 {[%emt 0:00:57]} 29. Ne3 {[%emt 0:00:09]} Rgg8 {[%emt 0:00:30]} 30. a4 {[%emt 0:00:17]} Rh8 {[%emt 0:00:08]} 31. a5 {[%emt 0:04:33]} Rxh5 {[%emt 0:02:11]} 32. gxh5 {[%emt 0:00:27]} Rh8 {[%emt 0:00:56]} 33. Bf3 {[%emt 0:00:13]} Bc6 {[%emt 0:04:07]} 34. Ra1 {[%emt 0:00:44]} Nh6 {[%emt 0:00:37]} 35. Ra3 {[%emt 0:01:29]} Rb8 {[%emt 0:04:46]} 36. Qa2 {[%emt 0:00:12]} Kf7 {[%emt 0:02:55]} 37. Bd1 {[%emt 0:00:52]} Kg7 {[%emt 0:02:05]} 38. axb6 {[%emt 0:00:41]} axb6 {[%emt 0:00:17]} 39. Ba4 {[%emt 0:01:11]} Bxa4 40. Rxa4 {[%emt 0:00:00]} Rb7 {[%emt 0:04:29]} 41. Ra6 {[%emt 0:01:01]} Qf7 {[%emt 0:01:56]} 42. Qh2 {[%emt 0:00:12]} Qd7 {[%emt 0:00:52]} 43. Qe2 {[%emt 0:01:06]} b5 {[%emt 0:00:09]} 44. cxb5 {[%emt 0:00:32]} Rxb5 {[%emt 0:00:02]} 45. Qa2 {[%emt 0:01:11]} Qf7 {[%emt 0:00:51]} 46. Ra7 {[%emt 0:03:30]} Rb7 {[%emt 0:00:06]} 47. Rxb7 {[%emt 0:00:02]} Qxb7 {[%emt 0:00:01]} 48. Qe6 {[%emt 0:00:02]} Qf7 {[%emt 0:00:08]} 49. Ng4 {[%emt 0:01:41]} Qf8 {[%emt 0:01:08]} 50. Qd7+ {[%emt 0:00:12]} Qf7 {[%emt 0:00:06]} 51. Qxd6 {[%emt 0:00:22]} Ng8 {[%emt 0:00:11]} 52. Qxc5 {[%emt 0:00:33]} Qxh5 {[%emt 0:00:03]} 53. Qa7+ {[%emt 0:00:07]} Kh8 {[%emt 0:00:15]} 54. Qg1 {[%emt 0:00:41]} Qh4+ {[%emt 0:00:14]} 55. Kf3 {[%emt 0:00:00]} Qh3+ {[%emt 0:00:02]} 56. Ke2 {[%emt 0:00:17]} Kg7 {[%emt 0:00:14]} 57. Nf2 {[%emt 0:00:15]} Qh5+ {[%emt 0:00:17]} 58. Qg4 {[%emt 0:00:10]} Qh2 {[%emt 0:00:16]} 59. Qh3 {[%emt 0:00:20]} Qf4 {[%emt 0:00:05]} 60. Qe3 {[%emt 0:00:04]} Qh2 {[%emt 0:00:12]} 61. Qf3 {[%emt 0:02:53]} Nh6 {[%emt 0:00:05]} 62. Kf1 {[%emt 0:00:04]} Qh4 {[%emt 0:00:27]} 63. Kg2 {[%emt 0:00:09]} g4 {[%emt 0:00:47]} 64. Qe3 {[%emt 0:00:04]} Qh5 {[%emt 0:00:31]} 65. c4 {[%emt 0:00:08]} Nf7 {[%emt 0:00:42]} 66. c5 {[%emt 0:00:21]} Ng5 {[%emt 0:01:05]} 67. Qg3 {[%emt 0:00:05]} Qe8 {[%emt 0:00:15]} 68. Qxg4 {[%emt 0:01:37]} Qe7 {[%emt 0:00:08]} 69. Qh5 {[%emt 0:00:10]} Nh7 {[%emt 0:00:55]} 70. c6 {[%emt 0:00:28]} Nf8 {[%emt 0:01:18]} 71. Ng4 {[%emt 0:00:05]} Nh7 {[%emt 0:00:44]} 72. Qg6+ {[%emt 0:00:12]} Kh8 {[%emt 0:00:02]} 73. Nh6 {[%emt 0:00:09]} 1-0

[Event "34rd NATO Championship 2024"]
[Site "Rhodes"]
[Date "2024.10.22"]
[Round "2.3"]
[White "Hadzicki, Tomasz"]
[Black "Papasimakopoulos, Alexandros"]
[Result "0-1"]
[ECO "B15"]
[WhiteElo "2034"]
[BlackElo "2372"]
[Annotator "RC"]
[PlyCount "68"]
[EventDate "2024.09.18"]
[EventType "swiss"]
[EventCountry "GRE"]
[SourceTitle "playchess.com"]
[Source "ChessBase"]
[SourceQuality "1"]
[TimeControl "5400+30"]

1. e4 {[%emt 0:00:01]} c6 {[%emt 0:01:45]} 2. d4 {[%emt 0:00:14]} g6 {[%emt 0:00:08]} 3. Nc3 {[%emt 0:00:17]} d5 {[%emt 0:00:07]} 4. exd5 {[%emt 0:00:12]} cxd5 {[%emt 0:00:07]} 5. Nf3 {[%emt 0:01:00]} Nf6 {[%emt 0:00:26]} 6. h3 {[%emt 0:00:23]} Bg7 {[%emt 0:00:07]} 7. Bf4 {[%emt 0:00:16]} O-O {[%emt 0:00:31]} 8. Be2 {[%emt 0:03:37]} Nc6 {[%emt 0:00:37]} 9. O-O {[%emt 0:10:37]} Ne4 {[%emt 0:00:08]} 10. Bb5 {[%emt 0:16:54]} Nxc3 {[%emt 0:02:14]} 11. bxc3 {[%emt 0:00:01]} Qa5 {[%emt 0:00:12]} 12. Bxc6 {[%emt 0:00:39]} bxc6 {[%emt 0:00:08]} 13. Qd2 {[%emt 0:02:44]} Re8 {[%emt 0:02:32]} 14. Rfe1 {[%emt 0:00:40]} c5 {[%emt 0:08:02]} 15. Ne5 {[%emt 0:10:20]} cxd4 {[%emt 0:05:12]} 16. cxd4 {[%emt 0:07:04]} Qxd2 {[%emt 0:01:00]} 17. Bxd2 {[%emt 0:00:02]} Bf5 {[%emt 0:04:05]} 18. c3 {[%emt 0:01:20]} f6 {[%emt 0:07:37]} 19. Nc6 {[%emt 0:03:34]} e5 {[%emt 0:00:29]} 20. f4 {[%emt 0:01:57]} Re6 {[%emt 0:12:30]} 21. Na5 {[%emt 0:15:11]} Rae8 {[%emt 0:15:21]} 22. fxe5 {[%emt 0:06:21]} fxe5 {[%emt 0:00:05]} 23. Nb3 {[%emt 0:00:29]} exd4 {[%emt 0:05:44]} 24. Nxd4 {[%emt 0:01:21]} Rxe1+ {[%emt 0:00:58]} 25. Rxe1 {[%emt 0:00:14]} Be4 {[%emt 0:00:02]} 26. Nb5 {[%emt 0:14:31]} Re6 {[%emt 0:04:12]} 27. a4 {[%emt 0:01:15]} a6 {[%emt 0:00:58]} 28. Nd4 {[%emt 0:01:39]} Rb6 {[%emt 0:00:02]} 29. Bc1 {[%emt 0:00:57]} Rb1 {[%emt 0:00:14]} 30. Bd2 {[%emt 0:01:06]} Rb2 {[%emt 0:00:07]} 31. Re2 {[%emt 0:00:20]} Ra2 {[%emt 0:00:13]} 32. Kf2 {[%emt 0:00:14]} Bd3 {[%emt 0:01:07]} 33. Re8+ {[%emt 0:00:58]} Kf7 {[%emt 0:00:07]} 34. Ke3 {[%emt 0:00:21]} Bh6+ {[%emt 0:00:11]} 0-1

[Event "34rd NATO Championship 2024"]
[Site "Rhodes"]
[Date "2024.10.22"]
[Round "2.4"]
[White "Aizpurua, Patrick Emilio"]
[Black "Van Drie, Rik"]
[Result "1-0"]
[ECO "B06"]
[WhiteElo "2322"]
[BlackElo "2013"]
[Annotator "RC"]
[PlyCount "43"]
[EventDate "2024.09.18"]
[EventType "swiss"]
[EventCountry "GRE"]
[SourceTitle "playchess.com"]
[Source "ChessBase"]
[SourceQuality "1"]
[TimeControl "5400+30"]

1. e4 {[%emt 0:02:17]} g6 {[%emt 0:00:24]} 2. d4 {[%emt 0:00:38]} Bg7 {[%emt 0:00:43]} 3. Be3 {[%emt 0:00:23]} d6 {[%emt 0:00:28]} 4. Nf3 {[%emt 0:00:56]} c6 {[%emt 0:00:47]} 5. c4 {[%emt 0:00:43]} Nf6 {[%emt 0:02:29]} 6. Nc3 {[%emt 0:00:09]} Nbd7 {[%emt 0:04:13]} 7. Be2 {[%emt 0:03:32]} a6 {[%emt 0:03:25]} 8. h3 {[%emt 0:03:56]} b5 {[%emt 0:01:12]} 9. e5 {[%emt 0:11:47]} Ng8 {[%emt 0:00:36]} 10. exd6 {[%emt 0:04:21]} exd6 {[%emt 0:00:21]} 11. Bf4 {[%emt 0:00:09]} Ndf6 {[%emt 0:01:38]} 12. c5 {[%emt 0:13:25]} dxc5 {[%emt 0:08:13]} 13. dxc5 {[%emt 0:01:54]} Bd7 {[%emt 0:00:16]} 14. Be5 {[%emt 0:04:59]} Ne7 {[%emt 0:02:37]} 15. Qd4 {[%emt 0:09:57]} Nf5 {[%emt 0:00:43]} 16. Qf4 {[%emt 0:02:51]} Bh6 {[%emt 0:04:34]} 17. Qh2 {[%emt 0:03:51]} Bg7 {[%emt 0:03:24]} 18. g4 {[%emt 0:00:52]} Ne7 {[%emt 0:00:15]} 19. Ne4 {[%emt 0:09:09]} Nc8 {[%emt 0:04:51]} 20. Rd1 {[%emt 0:02:39]} Ra7 {[%emt 0:01:45]} 21. Nxf6+ {[%emt 0:03:12]} Bxf6 {[%emt 0:00:15]} 22. Qf4 {[%emt 0:19:50]} 1-0

[Event "34rd NATO Championship 2024"]
[Site "Rhodes"]
[Date "2024.10.22"]
[Round "2.5"]
[White "Loving, Jason"]
[Black "Pedersen, Finn"]
[Result "0-1"]
[ECO "B12"]
[WhiteElo "2021"]
[BlackElo "2282"]
[Annotator "RC"]
[PlyCount "42"]
[EventDate "2024.09.18"]
[EventType "swiss"]
[EventCountry "GRE"]
[SourceTitle "playchess.com"]
[Source "ChessBase"]
[SourceQuality "1"]
[TimeControl "5400+30"]

1. e4 {[%emt 0:00:06]} c6 {[%emt 0:00:20]} 2. d4 {[%emt 0:00:15]} d5 {[%emt 0:00:06]} 3. e5 {[%emt 0:00:10]} Bf5 {[%emt 0:00:07]} 4. Nf3 {[%emt 0:00:16]} e6 {[%emt 0:00:06]} 5. Be2 {[%emt 0:00:17]} c5 {[%emt 0:01:01]} 6. Be3 {[%emt 0:02:43]} cxd4 {[%emt 0:00:23]} 7. Nxd4 {[%emt 0:00:31]} Ne7 {[%emt 0:00:08]} 8. Nd2 {[%emt 0:01:53]} Nbc6 {[%emt 0:00:40]} 9. N2b3 {[%emt 0:01:07]} Bg6 {[%emt 0:03:08]} 10. O-O {[%emt 0:07:07]} a6 {[%emt 0:08:34]} 11. Nc5 {[%emt 0:11:44]} Qc7 {[%emt 0:04:29]} 12. c4 {[%emt 0:03:21]} Nxd4 {[%emt 0:03:56]} 13. Bxd4 {[%emt 0:02:12]} Nf5 {[%emt 0:09:00]} 14. Na4 {[%emt 0:04:24]} Nxd4 {[%emt 0:01:26]} 15. Qxd4 {[%emt 0:00:13]} Rd8 {[%emt 0:02:37]} 16. c5 {[%emt 0:06:03]} Be7 {[%emt 0:01:00]} 17. Rac1 {[%emt 0:05:35]} O-O {[%emt 0:02:26]} 18. f4 {[%emt 0:00:49]} f6 {[%emt 0:04:43]} 19. Bg4 {[%emt 0:00:42]} Qc6 {[%emt 0:00:50]} 20. Rfe1 {[%emt 0:06:02]} fxe5 {[%emt 0:02:10]} 21. fxe5 {[%emt 0:00:22]} Bg5 {[%emt 0:00:32]} 0-1